fUSD/lending_fUSD_20251206
["ID","MTS","AMOUNT","RATE_DAILY","PERIOD"]
[396523788,1765034656274,-211.09468319,0.00012897,2]
[396523789,1765034660134,-264.58696209,0.00012897,2]
[396523790,1765034662559,-402.50747456,0.00012897,2]
[396523791,1765034663948,-254.88870554,0.00012897,2]
[396523792,1765034666688,-500.0,0.00012897,2]
[396523794,1765034671862,-146.72130588,0.00012897,2]
[396523795,1765034671921,-32.39857772,0.00013159,2]
[396523796,1765034674071,-200.0,0.00013159,2]
[396523797,1765034676845,-172.01732152,0.00013159,2]
[396523798,1765034676905,-328.04015812,0.00013209,2]
[396523805,1765034715999,1000.0,0.0001255,2]
[396523808,1765034733038,2780.93431625,0.00025,120]
[396523810,1765034737192,2751.0,0.0001255,2]
[396523852,1765034788629,-76.3757411,0.00013209,2]
[396523853,1765034788707,-580.76527509,0.00013251,2]
[396523854,1765034788783,-300.0,0.00013258,2]
[396523855,1765034788856,-1200.0,0.00013258,2]
[396523856,1765034788937,-404.41589922,0.00013259,2]
[396523857,1765034789910,-4876.89616918,0.00013259,2]
[396523858,1765034790045,-2847.96632549,0.00013259,2]
[396523859,1765034790113,-1000.0,0.00013259,2]
[396523860,1765034790186,-323.98804902,0.00013259,2]
[396523861,1765034790308,-1656.10125098,0.00013259,2]
[396523862,1765034790380,-1277.92769804,0.00013259,2]
[396523863,1765034790643,-378.17355294,0.00013259,2]
[396523864,1765034790726,-3753.77854902,0.00013259,2]
[396523865,1765034790820,-1656.10125098,0.00013259,2]
[396523866,1765034790937,-561.91191136,0.00013215,2]
[396523867,1765034791021,-3191.86663766,0.00013259,2]
[396523868,1765034791091,-2492.45290196,0.00013259,2]
[396523869,1765034791164,-561.91191136,0.00013259,2]
[396523870,1765034791241,-8876.18617728,0.00013259,2]
[396523871,1765034791343,-10000.01,0.00013259,2]
[396523872,1765034791413,-10000.01,0.00013259,2]
[396523873,1765034791633,-320.23651117,0.00013259,2]
[396523874,1765034791696,-10000.01,0.00013259,2]
[396523875,1765034795070,-280.6320994,0.00013258,2]
[396523876,1765034795537,-9438.7458012,0.00013259,2]
[396523877,1765034796882,-10000.01,0.00013259,2]
[396523889,1765034839074,-2271.12851891,0.00013215,2]
[396523890,1765034839324,-5457.75296218,0.00013215,2]
[396523891,1765034839510,-300.0,0.00013257,2]
[396523892,1765034839587,-150.0,0.00013257,2]
[396523893,1765034839677,-500.0,0.00013258,2]
[396523894,1765034839772,-500.0,0.00013258,2]
[396523896,1765034839858,-500.0,0.00013258,2]
[396523897,1765034839947,-500.0,0.00013258,2]
[396523898,1765034840036,-500.0,0.00013258,2]
[396523900,1765034840119,-500.0,0.00013258,2]
[396523901,1765034840207,-500.0,0.00013258,2]
[396523902,1765034840303,-500.0,0.00013258,2]
[396523904,1765034840389,-500.0,0.00013258,2]
[396523905,1765034842186,-100.01,0.00013258,2]
[396523906,1765034843701,-399.99,0.00013258,2]
[396523907,1765034843785,-500.0,0.00013258,2]
[396523908,1765034843864,-500.0,0.00013258,2]
[396523909,1765034843946,-500.0,0.00013258,2]
[396523911,1765034844027,-214.48228919,0.00013258,2]
[396523913,1765034844109,-500.0,0.00013258,2]
[396523914,1765034844192,-500.0,0.00013258,2]
[396523915,1765034844275,-500.0,0.00013258,2]
[396523916,1765034844361,-500.0,0.00013258,2]
[396523918,1765034844441,-500.0,0.00013258,2]
[396523919,1765034844523,-271.06542162,0.00013258,2]
[396523920,1765034845708,-228.93457838,0.00013159,2]
[396523921,1765034846283,-356.45811845,0.00013159,2]
[396523922,1765034849049,-242.71582632,0.00013159,2]
[396523923,1765034851173,-171.89147685,0.00013159,2]
[396523924,1765034851257,-228.93457838,0.00013258,2]
[396523925,1765034851338,-500.0,0.00013258,2]
[396523926,1765034851427,-500.0,0.00013258,2]
[396523927,1765034851505,-500.0,0.00013258,2]
[396523928,1765034851584,-500.0,0.00013258,2]
[396523929,1765034851662,-500.0,0.00013258,2]
[396523930,1765034851740,-500.0,0.00013258,2]
[396523931,1765034851818,-500.0,0.00013258,2]
[396523932,1765034851897,-500.0,0.00013258,2]
[396523933,1765034851976,-500.0,0.00013258,2]
[396523934,1765034853750,-198.35788954,0.00013258,2]
[396523937,1765034877191,-258.75560628,0.00013,2]
[396523938,1765034880302,-396.07028631,0.00013,2]
[396523939,1765034881944,-242.06209982,0.00013,2]
[396523940,1765034883407,-102.5120763,0.00013,2]
[396523941,1765034883477,-135.60397886,0.00013118,2]
[396523980,1765034891760,2387.0,0.00022,30]
[396523985,1765034907172,-153.90629306,0.0001293,2]
[396523986,1765034907238,-14.39602114,0.00013118,2]
[396523987,1765034907305,-0.4876858,0.00013159,2]
[396523988,1765034909822,-497.96233417,0.00013159,2]
[396523996,1765034912071,-154.99903607,0.00013159,2]
[396524000,1765034914231,-338.05361481,0.00013159,2]
[396524001,1765034916114,-183.37914982,0.00013159,2]
[396524002,1765034919722,-296.86883652,0.00013159,2]
[396524003,1765034924133,-467.4912232,0.00013159,2]
[396524004,1765034926395,-215.0738,0.00013159,2]
[396524006,1765034941802,101.29368016,0.00013607,3]
[396524013,1765034968031,3211.21,0.00012568,2]
[396524015,1765034968785,-272.57171961,0.00013159,2]
[396524016,1765034968849,-64.6115394,0.00013226,2]
[396524017,1765034970378,-186.208719,0.00013226,2]
[396524019,1765034972629,-377.22527986,0.00013226,2]
[396524020,1765034976865,-282.21267774,0.00013226,2]
[396524021,1765034989626,-551.006243,0.00013226,2]
[396524022,1765034989717,-1200.0,0.00013257,2]
[396524023,1765034989955,-6497.997514,0.00013259,2]
[396524024,1765034990073,-10000.01,0.00013259,2]
[396524025,1765034997183,-10000.01,0.00013259,2]
[396524026,1765034997437,-10000.01,0.00013259,2]
[396524055,1765035031851,-300.0,0.00013258,2]
[396524056,1765035031861,-585.84363645,0.00013258,2]
[396524057,1765035031874,-614.15636355,0.00013258,2]
[396524058,1765035031884,-150.0,0.00013258,2]
[396524059,1765035031894,-500.0,0.00013258,2]
[396524060,1765035031904,-500.0,0.00013258,2]
[396524061,1765035031914,-500.0,0.00013258,2]
[396524062,1765035031924,-500.0,0.00013258,2]
[396524063,1765035031933,-500.0,0.00013258,2]
[396524064,1765035031943,-500.0,0.00013258,2]
[396524065,1765035031953,-500.0,0.00013258,2]
[396524066,1765035031963,-242.92612833,0.00013258,2]
[396524067,1765035031973,-500.0,0.00013258,2]
[396524068,1765035031983,-255.47155245,0.00013259,2]
[396524069,1765035031993,-259.0,0.00013259,2]
[396524070,1765035032002,-2067.86014644,0.00013259,2]
[396524071,1765035032033,-801.95128758,0.00013259,2]
[396524072,1765035032043,-1856.87925001,0.00013259,2]
[396524075,1765035032146,-9240.80163394,0.00013259,2]
[396524077,1765035032158,-8686.38446985,0.00013259,2]
[396524082,1765035032175,-864.68137563,0.00013259,2]
[396524085,1765035032187,-4687.92848541,0.00013259,2]
[396524089,1765035032203,-4952.65,0.00013259,2]
[396524154,1765035037898,-640.96568385,0.00013259,2]
[396524155,1765035037997,-630.76982083,0.00013259,2]
[396524156,1765035038009,-970.97377415,0.00013259,2]
[396524162,1765035040117,-500.0,0.00013159,2]
[396524163,1765035040127,-500.0,0.00013159,2]
[396524164,1765035040136,-500.0,0.00013159,2]
[396524165,1765035040147,-500.0,0.00013159,2]
[396524166,1765035040155,-659.1802,0.00013159,2]
[396524167,1765035040167,-340.8198,0.00013159,2]
[396524168,1765035040176,-2915.27214739,0.00013259,2]
[396524169,1765035040198,-1435.0,0.00013259,2]
[396524170,1765035040262,-423.73298371,0.00013259,2]
[396524171,1765035040273,-530.6,0.00013259,2]
[396524172,1765035040284,-9882.34216851,0.00013259,2]
[396524173,1765035040294,-6242.24768139,0.00013259,2]
[396524180,1765035041545,-1.7e-07,0.00013259,2]
[396524181,1765035041568,-1421.76578285,0.00013259,2]
[396524194,1765035043079,-196.44246958,0.00013258,2]
[396524195,1765035043088,-70387.68303324,0.00013259,2]
[396524196,1765035043099,-22127.3474394,0.00013259,2]
[396524197,1765035043118,-867.26068256,0.00013259,2]
[396524198,1765035043129,-1947.79085535,0.00013259,2]
[396524199,1765035043210,-1213.37548336,0.00013259,2]
[396524200,1765035043222,-923.73661,0.00013259,2]
[396524209,1765035045925,-993.30151654,0.00013259,2]
[396524210,1765035048644,-759.58466666,0.00013259,2]
[396524211,1765035048659,-19207.5349454,0.00013259,2]
[396524212,1765035048671,-6491.47608949,0.00013259,2]
[396524213,1765035048682,-13451.64067581,0.00013259,2]
[396524214,1765035048693,-37632.48285371,0.00013259,2]
[396524215,1765035048720,-4360.90655014,0.00013259,2]
[396524243,1765035119174,-684.12706608,0.00013215,2]
[396524244,1765035119239,-151.0,0.00013256,2]
[396524245,1765035119307,-154.61945698,0.00013256,2]
[396524246,1765035119371,-196.554,0.00013259,2]
[396524247,1765035119683,-7627.40895388,0.00013259,2]
[396524248,1765035119824,-10000.01,0.00013259,2]
[396524249,1765035119901,-10000.01,0.00013259,2]
[396524250,1765035121262,-10000.01,0.00013259,2]
[396524251,1765035121322,-10000.01,0.00013259,2]
[396524252,1765035121384,-10000.01,0.00013259,2]
[396524253,1765035121440,-10000.01,0.00013259,2]
[396524254,1765035121503,-10000.01,0.00013259,2]
[396524255,1765035121689,-10000.01,0.00013259,2]
[396524256,1765035123092,-1039.75791174,0.00013259,2]
[396524257,1765035123181,-10000.01,0.00013259,2]
[396524258,1765035132878,-300.0,0.00013251,2]
[396524259,1765035132966,-500.0,0.00013251,2]
[396524260,1765035133036,-250.0,0.00013251,2]
[396524261,1765035133104,-500.0,0.00013251,2]
[396524262,1765035133172,-155.52772105,0.00013251,2]
[396524263,1765035133787,-500.0,0.00013251,2]
[396524264,1765035133866,-500.0,0.00013251,2]
[396524265,1765035133933,-250.0,0.00013251,2]
[396524266,1765035133999,-500.0,0.00013251,2]
[396524267,1765035134064,-151.0,0.00013251,2]
[396524268,1765035134128,-500.0,0.00013251,2]
[396524269,1765035134194,-500.0,0.00013251,2]
[396524270,1765035134261,-250.0,0.00013251,2]
[396524271,1765035134325,-135.9545579,0.00013251,2]
[396524272,1765035134622,-15.0454421,0.00013251,2]
[396524273,1765035134686,-500.0,0.00013251,2]
[396524274,1765035134753,-151.0,0.00013251,2]
[396524275,1765035134818,-500.0,0.00013251,2]
[396524276,1765035134886,-500.0,0.00013251,2]
[396524277,1765035134948,-250.0,0.00013251,2]
[396524278,1765035135012,-500.0,0.00013251,2]
[396524279,1765035135075,-151.0,0.00013251,2]
[396524280,1765035135143,-151.0,0.00013256,2]
[396524281,1765035135468,-500.0,0.00013251,2]
[396524282,1765035137952,-500.0,0.00013251,2]
[396524283,1765035137962,-250.0,0.00013251,2]
[396524284,1765035137971,-500.0,0.00013251,2]
[396524285,1765035137980,-151.0,0.00013251,2]
[396524286,1765035137990,-500.0,0.00013251,2]
[396524287,1765035137999,-500.0,0.00013251,2]
[396524288,1765035138010,-250.0,0.00013251,2]
[396524289,1765035138019,-500.0,0.00013251,2]
[396524290,1765035138029,-500.0,0.00013251,2]
[396524291,1765035138039,-151.0,0.00013251,2]
[396524292,1765035138049,-276.9645579,0.00013251,2]
[396524293,1765035138147,-201.24982805,0.00013251,2]
[396524294,1765035138302,-21.78561405,0.00013251,2]
[396524295,1765035138311,-250.0,0.00013251,2]
[396524296,1765035138321,-228.21438595,0.00013251,2]
[396524297,1765035138398,-234.92558646,0.00013251,2]
[396524298,1765035138408,-500.0,0.00013251,2]
[396524299,1765035138417,-151.0,0.00013251,2]
[396524300,1765035138427,-554.28525961,0.00013251,2]
[396524301,1765035138436,-500.0,0.00013251,2]
[396524302,1765035138446,-250.0,0.00013251,2]
[396524303,1765035138455,-500.0,0.00013251,2]
[396524304,1765035138464,-151.0,0.00013251,2]
[396524305,1765035138474,-6158.79915393,0.00013259,2]
[396524306,1765035139088,-250.0,0.00013251,2]
[396524307,1765035139159,-500.0,0.00013251,2]
[396524308,1765035140172,-151.0,0.00013251,2]
[396524309,1765035140243,-500.0,0.00013251,2]
[396524310,1765035140310,-250.0,0.00013251,2]
[396524311,1765035140379,-500.0,0.00013251,2]
[396524312,1765035140448,-151.0,0.00013251,2]
[396524313,1765035140518,-500.0,0.00013251,2]
[396524314,1765035140586,-250.0,0.00013251,2]
[396524315,1765035140658,-500.0,0.00013251,2]
[396524316,1765035140728,-500.0,0.00013251,2]
[396524317,1765035140802,-151.0,0.00013251,2]
[396524318,1765035140873,-151.0,0.00013251,2]
[396524319,1765035140940,-500.0,0.00013251,2]
[396524321,1765035141010,-151.0,0.00013251,2]
[396524322,1765035141076,-251.08563354,0.00013251,2]
[396524323,1765035141278,-4743.92436646,0.00013259,2]
[396524324,1765035141377,-222.4738,0.00013251,2]
[396524326,1765035141627,-27.5262,0.00013259,2]
[396524327,1765035141733,-500.0,0.00013259,2]
[396524328,1765035141860,-8500.01,0.00013259,2]
[396524330,1765035142743,-10000.01,0.00013259,2]
[396524331,1765035142824,-232.50385482,0.00013259,2]
[396524332,1765035143086,-151.0,0.00013251,2]
[396524333,1765035143153,-469.0,0.00013251,2]
[396524334,1765035143163,-31.0,0.00013259,2]
[396524335,1765035143226,-250.0,0.00013259,2]
[396524336,1765035143295,-500.0,0.00013259,2]
[396524337,1765035143375,-151.0,0.00013259,2]
[396524338,1765035143436,-500.0,0.00013259,2]
[396524339,1765035143537,-250.0,0.00013259,2]
[396524340,1765035143609,-500.0,0.00013259,2]
[396524341,1765035143697,-277.35679052,0.00013018,2]
[396524342,1765035143709,-222.64320948,0.00013259,2]
[396524343,1765035143787,-151.0,0.00013259,2]
[396524344,1765035143878,-151.0,0.00013259,2]
[396524345,1765035143993,-500.0,0.00013259,2]
[396524346,1765035144197,-151.0,0.00013259,2]
[396524347,1765035144273,-251.08563354,0.00013259,2]
[396524348,1765035144356,-987.83873292,0.00013259,2]
[396524349,1765035144439,-222.4738,0.00013259,2]
[396524350,1765035144516,-9555.0624,0.00013259,2]
[396524351,1765035145475,-200.0,0.00013251,2]
[396524352,1765035145549,-100.0,0.00013259,2]
[396524353,1765035146049,-10000.01,0.00013259,2]
[396524354,1765035146109,-10000.01,0.00013259,2]
[396524355,1765035146168,-10000.01,0.00013259,2]
[396524358,1765035151253,-500.0,0.00013251,2]
[396524359,1765035151319,-500.0,0.00013251,2]
[396524360,1765035151387,-500.0,0.00013251,2]
[396524361,1765035151460,-500.0,0.00013258,2]
[396524362,1765035151533,-500.0,0.00013258,2]
[396524363,1765035151604,-500.0,0.00013258,2]
[396524364,1765035151674,-425.15358661,0.00013258,2]
[396524365,1765035151758,-500.0,0.00013258,2]
[396524366,1765035151832,-500.0,0.00013258,2]
[396524367,1765035151911,-500.0,0.00013258,2]
[396524368,1765035152243,-500.0,0.00013258,2]
[396524369,1765035152316,-500.0,0.00013258,2]
[396524370,1765035152388,-500.0,0.00013258,2]
[396524371,1765035152460,-500.0,0.00013258,2]
[396524372,1765035152529,-500.0,0.00013258,2]
[396524373,1765035152598,-500.0,0.00013258,2]
[396524374,1765035152671,-500.0,0.00013258,2]
[396524375,1765035152743,-500.0,0.00013258,2]
[396524376,1765035152815,-500.0,0.00013258,2]
[396524377,1765035154179,-1000.0,0.00013251,2]
[396524378,1765035154246,-373.568521,0.00013258,2]
[396524380,1765035155842,-561.40879581,0.00013251,2]
[396524382,1765035156031,-438.59120419,0.00013251,2]
[396524383,1765035156041,-337.55310159,0.00013251,2]
[396524384,1765035156110,-373.568521,0.00013251,2]
[396524386,1765035156167,-288.87837741,0.00013251,2]
[396524387,1765035156177,-1000.0,0.00013251,2]
[396524388,1765035156186,-5963.99458059,0.00013259,2]
[396524389,1765035156281,-10000.01,0.00013259,2]
[396524392,1765035157076,-1000.0,0.00013251,2]
[396524393,1765035157086,-1469.71413574,0.00013251,2]
[396524394,1765035157096,-1000.0,0.00013251,2]
[396524395,1765035157105,-1000.0,0.00013251,2]
[396524396,1765035157115,-5530.29586426,0.00013259,2]
[396524397,1765035157422,-151.0,0.00013251,2]
[396524398,1765035157488,-157.84539116,0.00013251,2]
[396524399,1765035158094,-842.15460884,0.00013251,2]
[396524400,1765035158166,-151.0,0.00013251,2]
[396524401,1765035158236,-1000.0,0.00013251,2]
[396524402,1765035158309,-151.0,0.00013251,2]
[396524403,1765035158381,-1000.0,0.00013251,2]
[396524417,1765035159209,-3711.70078232,0.00013259,2]
[396524419,1765035159501,-151.0,0.00013251,2]
[396524420,1765035159510,-1000.0,0.00013251,2]
[396524421,1765035159520,-8849.01,0.00013259,2]
[396524422,1765035159602,-285.9509075,0.00013259,2]
[396524423,1765035159702,-151.0,0.00013251,2]
[396524424,1765035159711,-9849.01,0.00013259,2]
[396524425,1765035161609,-151.0,0.00013251,2]
[396524426,1765035161678,-151.0,0.00013251,2]
[396524427,1765035161759,-151.0,0.00013251,2]
[396524428,1765035162050,-151.0,0.00013251,2]
[396524429,1765035162059,-8943.01,0.00013259,2]
[396524430,1765035165101,-151.0,0.00013251,2]
[396524431,1765035165168,-286.4571496,0.00013251,2]
[396524432,1765035165245,-500.0,0.00013251,2]
[396524433,1765035165325,-500.0,0.00013251,2]
[396524434,1765035165394,-500.0,0.00013251,2]
[396524435,1765035165889,-6125.0957008,0.00013259,2]
[396524436,1765035166025,-500.0,0.00013251,2]
[396524437,1765035166121,-9500.01,0.00013259,2]
[396524438,1765035166206,-500.0,0.00013259,2]
[396524439,1765035166256,-9000.01,0.00013259,2]
[396524440,1765035167882,-500.0,0.00013251,2]
[396524441,1765035167954,-500.0,0.00013251,2]
[396524442,1765035168021,-500.0,0.00013251,2]
[396524443,1765035168330,-500.0,0.00013251,2]
[396524444,1765035168340,-6500.01,0.00013259,2]
[396524445,1765035168622,-250.0,0.00013251,2]
[396524446,1765035168784,-9750.01,0.00013259,2]
[396524447,1765035168959,-250.0,0.00013251,2]
[396524448,1765035169015,-250.0,0.00013251,2]
[396524449,1765035169025,-9250.01,0.00013259,2]
[396524450,1765035169141,-250.0,0.00013251,2]
[396524451,1765035169149,-9750.01,0.00013259,2]
[396524452,1765035176973,-500.0,0.00013251,2]
[396524453,1765035177062,-250.0,0.00013251,2]
[396524454,1765035177131,-500.0,0.00013251,2]
[396524455,1765035177196,-250.0,0.00013251,2]
[396524456,1765035177261,-250.0,0.00013251,2]
[396524457,1765035177324,-250.0,0.00013251,2]
[396524458,1765035177709,-335.66906055,0.00013251,2]
[396524459,1765035177772,-250.0,0.00013251,2]
[396524460,1765035177838,-250.0,0.00013251,2]
[396524461,1765035177906,-250.0,0.00013251,2]
[396524462,1765035177973,-250.0,0.00013251,2]
[396524463,1765035178044,-250.0,0.00013251,2]
[396524464,1765035178956,-2828.6718789,0.00013259,2]
[396524465,1765035179039,-10000.01,0.00013259,2]
[396524466,1765035179116,-10000.01,0.00013259,2]
[396524467,1765035179261,-10000.01,0.00013259,2]
[396524468,1765035179501,-169.47376315,0.00013259,2]
[396524469,1765035180307,-10000.01,0.00013259,2]
[396524470,1765035180543,-250.0,0.00013251,2]
[396524471,1765035180552,-9750.01,0.00013259,2]
[396524473,1765035186550,-250.0,0.00013251,2]
[396524474,1765035186621,-250.0,0.00013251,2]
[396524475,1765035186693,-250.0,0.00013251,2]
[396524476,1765035186763,-250.0,0.00013251,2]
[396524477,1765035186830,-250.0,0.00013251,2]
[396524478,1765035186898,-250.0,0.00013251,2]
[396524479,1765035186965,-250.0,0.00013251,2]
[396524480,1765035187033,-250.0,0.00013251,2]
[396524481,1765035187098,-150.0,0.00013258,2]
[396524482,1765035187758,-5700.01,0.00013259,2]
[396524483,1765035189852,-10000.01,0.00013259,2]
[396524488,1765035222153,-185.59136797,0.00013159,2]
[396524490,1765035225520,-207.84704889,0.00013159,2]
[396524491,1765035227039,-272.00859032,0.00013159,2]
[396524503,1765035228918,6020.24,0.00012516,2]
[396524505,1765035229629,-169.76735559,0.00013159,2]
[396524512,1765035232251,-164.78563723,0.00013159,2]
[396524513,1765035232311,-5.37011823,0.00013193,2]
[396524515,1765035233803,-198.1639605,0.00013193,2]
[396524516,1765035236185,-169.56445008,0.00013193,2]
[396524517,1765035238685,-410.98113856,0.00013193,2]
[396524518,1765035239837,-388.76342236,0.00013193,2]
[396524519,1765035242648,-187.31676735,0.00013193,2]
[396524520,1765035252190,-185.26782743,0.00013158,2]
[396524521,1765035252249,-286.93443198,0.00013193,2]
[396524523,1765035255634,200.0,0.00012499,2]
[396524529,1765035267654,17911.95,0.00012499,2]
[396524590,1765035385987,708.79,0.00012541,2]
[396524591,1765035399744,-185.26782742,0.00013172,2]
[396524592,1765035399812,-15.30017294,0.00013193,2]
[396524593,1765035399880,-1200.0,0.00013257,2]
[396524594,1765035399957,-300.0,0.00013258,2]
[396524595,1765035400027,-150.0,0.00013258,2]
[396524596,1765035400097,-500.0,0.00013258,2]
[396524597,1765035400167,-500.0,0.00013258,2]
[396524598,1765035400235,-500.0,0.00013258,2]
[396524599,1765035400309,-491.97239377,0.00013258,2]
[396524600,1765035400382,-500.0,0.00013258,2]
[396524601,1765035400455,-500.0,0.00013258,2]
[396524602,1765035401429,-314.92921174,0.00013258,2]
[396524603,1765035402882,-156.25203245,0.00013258,2]
[396524604,1765035402950,-1251.05789869,0.00013259,2]
[396524605,1765035403023,-200.0,0.00013259,2]
[396524606,1765035403391,-6785.39013772,0.00013259,2]
[396524607,1765035407260,1460.07,0.00012685,2]
[396524608,1765035408875,-10000.01,0.00013259,2]
[396524616,1765035485159,148744.39,0.00012502,2]
[396524617,1765035499422,171.00727178,0.000249,120]
[396524622,1765035517454,1319.04,0.00012499,2]
[396524626,1765035556044,409.04,0.00012525,2]
[396524631,1765035600677,-150.0,0.00013257,2]
[396524632,1765035601241,300.0,0.00013257,2]
[396524633,1765035601303,1200.0,0.00013257,2]
[396524634,1765035601964,300.0,0.00013257,2]
[396524636,1765035612124,-259.0,0.00013258,2]
[396524637,1765035612254,-85.54669257,0.00013258,2]
[396524638,1765035616044,-288.0,0.00013258,2]
[396524639,1765035618777,-126.45330743,0.00013258,2]
[396524640,1765035618897,-45.75709122,0.00013258,2]
[396524641,1765035620531,2650.0,0.000125,2]
[396524642,1765035620603,3185.41,0.000125,2]
[396524643,1765035621431,-371.93945084,0.00013258,2]
[396524647,1765035642425,-227.87146299,0.00012976,2]
[396524648,1765035646626,-1512.35410639,0.00012976,2]
[396524649,1765035646787,-82.30345794,0.00013258,2]
[396524650,1765035646934,-500.0,0.00013258,2]
[396524651,1765035647086,-500.0,0.00013258,2]
[396524652,1765035647232,-500.0,0.00013258,2]
[396524653,1765035647378,-500.0,0.00013258,2]
[396524654,1765035647533,-500.0,0.00013258,2]
[396524656,1765035647690,-500.0,0.00013258,2]
[396524657,1765035647837,-264.93399709,0.00013258,2]
[396524659,1765035648724,-280.82687716,0.00013258,2]
[396524660,1765035648853,-500.0,0.00013258,2]
[396524661,1765035648982,-500.0,0.00013258,2]
[396524662,1765035649108,-500.0,0.00013258,2]
[396524663,1765035649237,-500.0,0.00013258,2]
[396524664,1765035649359,-500.0,0.00013258,2]
[396524665,1765035649484,-344.75405139,0.00013258,2]
[396524666,1765035649558,-311.1,0.00013259,2]
[396524667,1765035650991,-33.65405139,0.00013259,2]
[396524668,1765035651162,-311.1,0.00013259,2]
[396524669,1765035651221,-3126.6481429,0.00013259,2]
[396524670,1765035656776,-10000.01,0.00013259,2]
[396524671,1765035656843,-10000.01,0.00013259,2]
[396524672,1765035656926,-10000.01,0.00013259,2]
[396524673,1765035657254,-304.82607904,0.00013259,2]
[396524674,1765035657326,-10000.01,0.00013259,2]
[396524675,1765035657419,-2525.31709568,0.00013259,2]
[396524676,1765035657492,-193.0,0.00013266,2]
[396524677,1765035657877,-4563.37580864,0.00013272,2]
[396524678,1765035663983,-1836.96219136,0.00013272,2]
[396524679,1765035664365,-2347.38561728,0.00013314,2]
[396524680,1765035664526,-1631.31438272,0.00013314,2]
[396524681,1765035667340,-1398.5236,0.00013315,2]
[396524682,1765035667411,-473.2246,0.00013334,2]
[396524683,1765035667483,-505.52202945,0.00013346,2]
[396524684,1765035667556,-300.0,0.0001335,2]
[396524685,1765035667627,-150.0,0.00013351,2]
[396524686,1765035667699,-150.0,0.00013351,2]
[396524687,1765035667788,-150.0,0.00013351,2]
[396524688,1765035667875,-150.0,0.00013351,2]
[396524689,1765035667962,-150.0,0.00013351,2]
[396524690,1765035668053,-186.43349316,0.00013351,2]
[396524691,1765035668140,-150.0,0.00013351,2]
[396524692,1765035668230,-500.0,0.00013351,2]
[396524693,1765035668317,-150.0,0.00013351,2]
[396524694,1765035668403,-150.0,0.00013351,2]
[396524695,1765035669790,-872.60255478,0.00013351,2]
[396524696,1765035673329,-28.70744522,0.00013351,2]
[396524697,1765035673400,-566.93917906,0.00013357,2]
[396524698,1765035673472,-302.07094982,0.00013357,2]
[396524699,1765035673547,-218.10646696,0.00013357,2]
[396524700,1765035673617,-1000.0,0.00013358,2]
[396524701,1765035673687,-150.99,0.00013358,2]
[396524702,1765035673756,-1540.48,0.00013358,2]
[396524703,1765035674340,-2385.42191788,0.00013358,2]
[396524704,1765035676290,-2385.44191788,0.00013358,2]
[396524705,1765035676360,-5229.12616424,0.00013358,2]
[396524706,1765035717165,-210.93645196,0.00013107,2]
[396524707,1765035721581,-303.55737173,0.00013107,2]
[396524708,1765035723500,-233.17537175,0.00013107,2]
[396524709,1765035726232,-397.17306172,0.00013107,2]
[396524710,1765035728274,155.152779,7.945e-05,2]
[396524711,1765035728809,-335.42669352,0.00013107,2]
[396524712,1765035731486,-161.32000017,0.00013107,2]
[396524713,1765035733729,-299.0037605,0.00013107,2]
[396524714,1765035736452,-180.49117804,0.00013107,2]
[396524718,1765035739962,-174.77087134,0.00013041,2]
[396524719,1765035742797,-153.58826066,0.00013041,2]
[396524720,1765035742870,-23.68173934,0.00013107,2]
[396524721,1765035744709,-174.0,0.00013107,2]
[396524722,1765035748529,-444.64236211,0.00013107,2]